bitfinex-derivatives/quotes_ETHF0:USTF0_20241104
["timestamp","ask_amount","ask_price","bid_price","bid_amount"]
[1730747174465,41.21126,2432.9,2432.8,0.41127]
[1730747174764,41.21126,2432.9,2432.5,2.89306099]
[1730747175273,0.4615,2433.1,2432.4,5.53753]
[1730747175566,0.41122,2433.1,2432.9,0.41124]
[1730747175760,0.41122,2433.1,2433.0,0.4355]
[1730747176862,0.41122,2433.1,2433.0,0.84674]
[1730747177069,0.41122,2433.1,2433.0,0.84673]
[1730747177457,0.41122,2433.1,2433.0,3.73979099]
[1730747179657,0.41122,2433.1,2433.0,3.73980099]
[1730747180133,40.8,2433.4,2433.0,3.32856099]
[1730747180336,1.12391,2433.5,2433.0,3.32856099]
[1730747180539,1.12391,2433.5,2433.2,0.4112]
[1730747180540,0.4112,2433.3,2433.2,0.4112]
[1730747180736,0.4112,2433.3,2433.2,0.41119]
[1730747180939,40.8,2433.5,2433.4,0.41117]
[1730747181140,40.8,2433.5,2433.4,2.89306099]
[1730747181141,41.21115,2433.5,2433.4,2.89306099]
[1730747181440,0.41115,2433.5,2433.4,3.30423099]
[1730747182135,44.0078,2433.6,2433.2,2.89306099]
[1730747182341,0.41116,2433.5,2433.4,0.41116]
[1730747182840,0.41118,2433.4,2433.3,0.41117]
[1730747183033,44.0078,2433.6,2433.2,2.89306099]
[1730747183232,0.41118,2433.4,2433.3,0.41119]
[1730747183630,44.0078,2433.6,2433.2,2.89306099]
[1730747183833,0.41119,2433.4,2433.3,0.41118]
[1730747184236,45.03565,2433.6,2433.2,3.30426099]
[1730747184444,44.0078,2433.6,2433.2,2.89306099]
[1730747184936,0.41119,2433.3,2433.2,3.30425099]
[1730747185134,0.41119,2433.3,2433.2,2.89306099]
[1730747185341,0.4112,2433.2,2433.1,3.61901]
[1730747185543,1.02789,2433.5,2433.1,3.2078]
[1730747185740,0.41119,2433.3,2433.2,0.41119]
[1730747187344,40.8,2433.6,2433.5,0.41115]
[1730747187545,40.8,2433.6,2433.5,3.30421099]
[1730747187740,0.87031,2433.8,2433.7,0.41112]
[1730747188150,41.21111,2433.8,2433.7,0.41112]
[1730747188453,0.4111,2433.9,2433.8,0.41109]
[1730747188846,41.2111,2433.9,2433.8,0.41109]
[1730747189048,0.4111,2433.8,2433.7,0.863]
[1730747189447,0.4111,2433.8,2433.7,0.4519]
[1730747189951,0.4111,2433.8,2433.7,0.86302]
[1730747192444,0.4111,2433.8,2433.7,0.4519]
[1730747193543,0.4111,2433.8,2433.7,0.86302]
[1730747193745,0.4111,2433.8,2433.7,0.4519]
[1730747193951,0.41112,2433.7,2433.6,0.83532]
[1730747194153,0.4296,2434.0,2433.6,0.4242]
[1730747194449,0.41111,2433.8,2433.7,0.4111]
[1730747197359,0.4296,2434.0,2433.6,0.4242]
[1730747197560,41.2575,2434.1,2434.0,0.41107]
[1730747197768,0.4575,2434.1,2434.0,0.41107]
[1730747197965,0.86855,2434.1,2434.0,0.41107]
[1730747198167,0.41105,2434.1,2434.0,3.61887]
[1730747201969,40.8,2434.2,2434.0,0.41107]
[1730747202173,0.41105,2434.1,2434.0,0.41107]
[1730747203279,40.8,2434.2,2433.9,3.34546099]
[1730747203579,40.8,2434.2,2433.9,3.75653099]
[1730747203580,0.41107,2434.0,2433.9,3.75653099]
[1730747204078,40.8,2434.2,2433.9,3.34546099]
[1730747204276,0.41107,2434.1,2434.0,0.41105]
[1730747204790,0.86127,2434.1,2434.0,0.41105]
[1730747207675,1.02751,2434.4,2434.0,1.02766]
[1730747207676,0.41101,2434.4,2434.0,1.02766]
[1730747207882,0.441,2434.5,2434.1,3.34426099]
[1730747208189,0.41098,2434.6,2434.4,2.89306099]
[1730747208401,0.41098,2434.6,2434.5,0.87458]
[1730747208579,0.41098,2434.6,2434.5,1.31328]
[1730747209373,0.41097,2434.6,2434.5,1.31328]
[1730747209570,40.8,2434.7,2434.6,0.41097]
[1730747209779,40.8,2434.7,2434.6,6.51183099]
[1730747210528,0.8715,2435.0,2434.7,0.41093]
[1730747210529,0.41094,2434.8,2434.7,0.41093]
[1730747212084,0.41095,2434.7,2434.6,3.2078]
[1730747212284,1.02739,2434.7,2434.3,1.6526]
[1730747212477,0.411,2434.5,2434.4,0.4527]
[1730747213286,0.411,2434.4,2434.3,2.08092]
[1730747213886,0.411,2434.4,2434.3,1.6699]
[1730747214189,0.411,2434.4,2434.3,2.0809]
[1730747216088,0.411,2434.4,2434.3,1.6699]
[1730747216387,0.411,2434.4,2434.3,2.08092]
[1730747218385,1.91193,2434.6,2434.5,2.89306099]
[1730747218386,0.8845,2434.6,2434.5,2.89306099]
[1730747218585,1.29548,2434.6,2434.5,3.30404099]
[1730747219587,1.29548,2434.6,2434.5,2.89306099]
[1730747220680,0.4282,2434.8,2434.5,2.89306099]
[1730747220979,0.4282,2434.8,2434.4,0.4463]
[1730747221177,0.41098,2434.5,2434.4,0.85729]
[1730747221372,0.41098,2434.6,2434.5,0.41096]
[1730747221568,0.41098,2434.6,2434.5,3.30402099]
[1730747222174,42.7321,2434.9,2434.5,3.30402099]
[1730747222175,0.9048,2434.9,2434.5,8.02772099]
[1730747222382,3.3038,2435.3,2435.1,0.41088]
[1730747222383,0.41088,2435.2,2435.1,0.41088]
[1730747222687,0.41088,2435.2,2435.1,3.30394099]
[1730747223470,0.41088,2435.2,2435.1,2.89306099]
[1730747223674,0.41088,2435.2,2435.1,3.30394099]
[1730747223884,0.41088,2435.2,2435.1,2.89306099]
[1730747224360,0.41088,2435.2,2435.1,3.30394099]
[1730747228765,0.4504,2435.3,2435.1,2.89306099]
[1730747228971,0.41086,2435.4,2435.3,0.41084]
[1730747229263,0.4544,2435.5,2435.1,2.89306099]
[1730747229264,0.41086,2435.3,2435.2,1.75285]
[1730747229666,0.4544,2435.5,2435.2,1.342]
[1730747229867,0.41085,2435.4,2435.3,0.41084]
[1730747230167,0.41085,2435.3,2435.2,1.75285]
[1730747230660,0.41085,2435.3,2435.1,2.89306099]
[1730747230661,1.48144,2435.5,2435.1,2.89306099]
[1730747230859,0.41088,2435.1,2435.0,3.2078]
[1730747231260,0.84578,2435.1,2435.0,3.2078]
[1730747231772,0.84578,2435.1,2435.0,3.6187]
[1730747232472,0.41095,2434.7,2434.6,3.30402099]
[1730747232665,5.56855,2435.1,2434.7,0.41093]
[1730747232666,0.41095,2434.8,2434.7,0.41093]
[1730747234870,0.41095,2434.7,2434.6,2.89306099]
[1730747235066,0.41095,2434.7,2434.3,3.2078]
[1730747235067,0.8808,2434.7,2434.3,3.2078]
[1730747235379,0.411,2434.4,2434.3,3.2078]
[1730747235869,0.41103,2434.3,2434.2,0.41102]
[1730747236171,0.41103,2434.3,2434.2,0.87572]
[1730747236360,0.41103,2434.3,2434.2,4.98372]
[1730747236568,0.41103,2434.3,2434.2,0.87572]
[1730747236961,0.41103,2434.3,2434.2,0.4647]
[1730747237167,0.41103,2434.3,2434.2,0.87573]
[1730747237474,0.41103,2434.3,2434.2,0.4647]
[1730747237776,0.41107,2434.0,2433.9,4.21153099]
[1730747237973,1.31425,2434.2,2434.1,0.41105]
[1730747238473,0.41107,2434.1,2434.0,0.41106]
[1730747238974,1.31424,2434.2,2434.1,0.41105]
[1730747239668,0.9032,2434.2,2433.9,4.26516099]
[1730747239868,2.24879251,2434.7,2434.1,2.89306099]
[1730747240072,0.41095,2434.7,2434.6,3.30401099]
[1730747240268,0.8857,2435.0,2434.6,2.89306099]
[1730747240464,0.41095,2434.7,2434.6,0.8563]
[1730747240668,0.41095,2434.7,2434.6,1.26727]
[1730747240869,0.41095,2434.7,2434.6,0.8563]
[1730747241071,0.411,2434.4,2434.3,0.86521]
[1730747241276,0.41099,2434.5,2434.4,0.41099]
[1730747242569,0.41098,2434.6,2434.5,0.41098]
[1730747243076,0.41099,2434.5,2434.4,0.41099]
[1730747243269,0.41098,2434.6,2434.5,0.41098]
[1730747245469,0.4545,2434.7,2434.4,0.41098]
[1730747245470,0.41099,2434.5,2434.4,0.41098]
[1730747245671,0.86947,2434.6,2434.5,0.41098]
[1730747245976,1.29127,2434.6,2434.5,0.41098]
[1730747246770,0.41095,2434.8,2434.7,0.41094]
[1730747247272,4.51815,2434.8,2434.7,0.41094]
[1730747249674,4.51815,2434.8,2434.5,0.4297]
[1730747249675,0.41097,2434.7,2434.6,0.41096]
[1730747249981,3.03309251,2434.9,2434.5,0.4297]
[1730747250182,0.41097,2434.6,2434.5,0.84067]
[1730747251470,0.41097,2434.6,2434.5,0.41097]
[1730747252073,42.95279251,2434.8,2434.5,8.02770099]
[1730747252074,1.28064251,2434.8,2434.5,8.02770099]
[1730747252278,0.41084,2435.4,2434.8,1.02734]
[1730747252475,0.41084,2435.4,2435.3,0.41085]
[1730747252672,0.41088,2435.2,2435.1,0.41088]
[1730747253570,4.23484,2435.5,2435.0,2.89306099]
[1730747253778,0.41088,2435.2,2435.1,0.41087]
[1730747255470,4.23486,2435.5,2435.0,2.89306099]
[1730747255675,0.41088,2435.1,2435.0,3.30395099]
[1730747256186,0.41088,2435.2,2435.1,0.41087]
[1730747256387,0.433,2435.3,2435.0,2.89306099]
[1730747256577,0.41088,2435.1,2435.0,3.30395099]
[1730747258280,4.1064,2435.1,2434.7,7.17272403]
[1730747258585,4.1064,2435.1,2434.6,0.096]
[1730747258586,1.45912,2435.1,2434.6,0.9005]
[1730747258779,0.41095,2434.8,2434.7,0.41095]
[1730747258978,1.45912,2435.1,2434.6,0.9005]
[1730747259181,0.41095,2434.7,2434.6,1.31145]
[1730747260083,0.41095,2434.7,2434.6,0.85185]
[1730747260883,0.85655,2434.7,2434.6,0.85185]
[1730747261393,0.85655,2434.7,2434.6,0.4409]
[1730747261778,0.85655,2434.7,2434.6,0.85187]
[1730747262995,0.41098,2434.6,2434.5,0.41098]
[1730747263195,0.4456,2434.7,2434.4,4.0827]
[1730747263394,0.41098,2434.5,2434.4,4.49369]
[1730747263895,0.41098,2434.5,2434.4,4.07519]
[1730747264898,0.41098,2434.5,2434.4,4.0752]
[1730747268235,41.21098,2434.5,2434.4,4.0752]
[1730747270932,41.21098,2434.5,2434.4,0.8674]
[1730747271624,41.21098,2434.5,2434.4,0.4564]
[1730747271831,41.21098,2434.5,2434.2,0.85073]
[1730747271832,0.41102,2434.3,2434.2,0.85073]
[1730747272529,0.41102,2434.3,2434.2,0.4397]
[1730747272834,0.4591,2434.4,2434.1,0.85294]
[1730747272835,0.41103,2434.2,2434.1,0.85294]
[1730747274839,4.37969099,2434.4,2434.0,3.2078]
[1730747275141,0.41108,2433.9,2433.8,1.27939]
[1730747275637,0.41108,2433.9,2433.8,0.8683]
[1730747275829,2.69099064,2434.4,2433.9,1.02772]
[1730747276029,0.096,2434.8,2434.3,6.10086099]
[1730747276333,1.0272,2435.2,2434.6,3.2078]
[1730747276334,3.21719064,2435.1,2434.6,3.2078]
[1730747276542,3.21719064,2435.1,2434.8,0.41093]
[1730747276543,0.41093,2434.9,2434.8,0.41093]
[1730747276844,43.92119064,2435.1,2434.6,3.2078]
[1730747277039,0.4109,2435.0,2434.9,0.4109]
[1730747277242,41.2302,2435.1,2434.6,4.23522]
[1730747277435,0.41091,2435.0,2434.9,0.41091]
[1730747277628,41.2302,2435.1,2434.6,4.23522]
[1730747277831,0.41091,2435.0,2434.9,0.41091]
[1730747280469,0.41093,2434.9,2434.8,0.41092]
[1730747280634,41.2302,2435.1,2434.7,0.4445]
[1730747280952,0.41091,2435.0,2434.9,0.41091]
[1730747281344,40.8,2435.1,2435.0,0.4109]
[1730747281737,3.53853064,2435.4,2435.3,0.41085]
[1730747281943,0.84754,2435.4,2435.3,0.41085]
[1730747282541,0.84754,2435.4,2435.1,0.4354]
[1730747282542,0.41086,2435.3,2435.2,0.41086]
[1730747282740,0.4367,2435.4,2435.1,0.4354]
[1730747283278,0.41086,2435.2,2435.1,0.84628]
[1730747283639,0.4367,2435.4,2435.1,0.4354]
[1730747284035,0.41086,2435.2,2435.1,0.84627]
[1730747284649,0.41086,2435.2,2435.1,0.84628]
[1730747285441,0.41086,2435.2,2434.6,1.07186304]
[1730747285442,1.02721,2435.1,2434.6,1.07186304]
[1730747285749,0.41097,2434.6,2434.5,4.48407]
[1730747286149,41.21097,2434.6,2434.5,4.48407]
[1730747287345,41.21097,2434.6,2434.5,4.0731]
[1730747287842,41.21097,2434.6,2434.5,4.48408]
[1730747288243,41.21097,2434.6,2434.5,4.03748]
[1730747288447,41.21097,2434.6,2434.5,3.6265]
[1730747289055,41.21097,2434.6,2434.5,4.03748]
[1730747289349,40.8,2434.6,2434.5,8.14468]
[1730747289643,41.21097,2434.6,2434.5,8.14468]
[1730747290716,41.21097,2434.6,2434.5,4.93688]
[1730747290922,41.21097,2434.6,2434.5,0.82968]
[1730747291513,41.21097,2434.6,2434.2,1.48288304]
[1730747291514,0.41102,2434.3,2434.2,1.48288304]
[1730747291710,0.41102,2434.3,2434.2,0.41102]
[1730747291921,0.41104,2434.2,2434.1,0.41103]
[1730747292125,0.41105,2434.1,2434.0,3.61886]
[1730747292313,0.41105,2434.1,2434.0,3.2078]
[1730747292516,0.41105,2434.1,2434.0,3.61886]
[1730747293026,2.37477,2434.5,2434.4,0.411]
[1730747293027,0.4643,2434.5,2434.4,0.411]
[1730747293228,0.41096,2434.7,2434.6,0.41095]
[1730747293523,0.4185,2434.9,2434.5,1.30617]
[1730747293524,0.41097,2434.6,2434.5,1.30617]
[1730747294027,40.8,2434.8,2434.5,0.8952]
[1730747294422,0.41097,2434.6,2434.5,1.30617]
[1730747295120,40.8,2434.8,2434.5,0.8952]
[1730747295428,0.41096,2434.7,2434.6,0.41095]
[1730747295616,41.21095,2434.8,2434.7,0.41095]
[1730747295818,40.8,2434.8,2434.7,3.61875]
[1730747296120,0.41091,2435.0,2434.9,0.4109]
[1730747296622,41.21089,2435.1,2435.0,0.4109]
[1730747296823,41.21089,2435.1,2435.0,3.2078]
[1730747296824,0.41088,2435.1,2435.0,3.2078]
[1730747297121,0.41088,2435.1,2435.0,3.6187]
[1730747297325,41.21088,2435.1,2435.0,0.4109]
[1730747297724,0.41091,2435.0,2434.9,0.4109]
[1730747299216,40.8,2435.1,2434.7,3.2078]
[1730747299419,0.41093,2434.8,2434.7,3.2078]
[1730747299829,4.51813,2434.8,2434.7,3.2078]
[1730747300719,0.41095,2434.7,2434.6,0.41097]
[1730747300925,0.41097,2434.6,2434.5,1.30617]
[1730747301524,0.4337,2434.7,2434.5,0.8952]
[1730747301731,0.84466,2434.7,2434.6,0.41097]
[1730747302226,0.84466,2434.7,2434.5,0.8952]
[1730747302227,0.41095,2434.8,2434.7,0.41094]
[1730747302524,0.41093,2434.9,2434.8,0.41092]
[1730747303028,0.41094,2434.8,2434.7,0.41094]
[1730747304233,0.41094,2434.8,2434.5,0.8952]
[1730747304234,0.41096,2434.7,2434.6,0.41094]
[1730747304526,0.41096,2434.7,2434.6,3.61875]
[1730747304731,1.0273,2434.9,2434.6,0.41096]
[1730747304924,0.41097,2434.7,2434.6,0.41096]
[1730747305327,0.4294,2434.9,2434.5,0.8952]
[1730747305523,0.41094,2434.8,2434.7,0.41094]
[1730747306728,0.41096,2434.7,2434.6,0.41095]
[1730747308228,0.41097,2434.6,2434.5,0.84317]
[1730747308422,4.58415064,2435.0,2434.9,0.4109]
[1730747308423,0.41091,2435.0,2434.9,0.4109]
[1730747309229,41.21089,2435.1,2435.0,0.4109]
[1730747309424,40.8,2435.1,2435.0,0.4109]
[1730747310131,3.61865,2435.3,2434.9,0.4224]
[1730747310333,3.61865,2435.3,2435.2,0.41086]
[1730747310530,3.2078,2435.3,2434.9,0.4224]
[1730747310729,0.41088,2435.2,2435.1,0.41087]
[1730747312035,0.4109,2435.0,2434.9,0.83331]
[1730747312230,0.4109,2435.0,2434.9,0.4224]
[1730747312423,0.4109,2435.0,2434.9,0.83332]
[1730747312622,44.0078,2435.3,2435.2,0.41086]
[1730747313431,44.41865,2435.3,2435.2,0.41086]
[1730747314437,41.21085,2435.3,2435.2,0.41086]
[1730747314639,40.8,2435.3,2435.2,0.41086]
[1730747314834,2.69099064,2435.6,2435.5,0.41081]
[1730747315141,0.41083,2435.5,2435.4,0.41082]
[1730747318434,0.41083,2435.4,2435.3,1.30823]
[1730747318740,0.41088,2435.2,2435.1,0.41087]
[1730747320438,0.4109,2435.1,2435.0,0.41089]
[1730747320631,0.4109,2435.0,2434.9,4.51321]
[1730747320831,0.4109,2435.0,2434.9,1.30541]
[1730747321631,0.8419,2435.0,2434.9,1.30541]
[1730747323339,0.431,2435.0,2434.9,1.30541]
[1730747323635,0.8419,2435.0,2434.9,1.30541]
[1730747324640,0.8419,2435.0,2434.9,0.86131]
[1730747326638,0.431,2435.0,2434.8,3.2078]
[1730747326838,0.41092,2434.9,2434.8,3.61873]
[1730747328531,0.431,2435.0,2434.7,0.4369]
[1730747328733,0.41093,2434.8,2434.7,0.84784]
[1730747328939,0.41095,2434.7,2434.6,0.4375]
[1730747329235,0.41095,2434.7,2434.4,1.61333267]
[1730747329236,0.411,2434.4,2434.3,3.2078]
[1730747329634,0.411,2434.4,2434.3,3.61882]
[1730747329831,41.211,2434.4,2434.3,3.61882]
[1730747330246,40.8,2434.4,2434.3,3.61882]
[1730747330636,41.211,2434.4,2434.3,3.61882]
[1730747331158,0.83247,2434.6,2434.3,9.34130657]
[1730747331366,0.83247,2434.6,2434.5,0.41098]
[1730747331568,0.4215,2434.6,2434.5,0.41098]
[1730747331753,41.63247,2434.6,2434.5,0.41098]
[1730747332151,0.83247,2434.6,2434.5,0.41098]
[1730747333657,0.4215,2434.6,2434.5,0.41098]
[1730747333862,0.83247,2434.6,2434.5,0.41098]
[1730747337168,0.41098,2434.5,2434.4,1.29199]
[1730747337359,0.41098,2434.5,2434.4,0.41099]
[1730747340173,0.411,2434.4,2434.3,3.61881]
[1730747341259,0.411,2434.5,2434.4,0.41098]
[1730747341448,0.4215,2434.6,2434.4,0.41098]
[1730747341648,0.41098,2434.5,2434.4,0.41098]
[1730747342158,0.4215,2434.6,2434.3,3.2078]
[1730747342159,0.411,2434.4,2434.3,3.6188]
[1730747343282,4.108,2434.4,2434.1,0.4514]
[1730747343578,0.4111,2433.8,2433.7,1.17155511]
[1730747343781,0.41113,2433.6,2433.5,1.48669511]
[1730747344253,0.41117,2433.5,2433.4,0.41115]
[1730747344452,0.4241,2433.7,2433.5,0.41113]
[1730747344453,0.41116,2433.6,2433.5,0.41113]
[1730747345267,0.41117,2433.5,2433.4,0.41116]
[1730747345450,0.41116,2433.6,2433.5,0.41113]
[1730747345950,0.41117,2433.5,2433.4,0.41116]
[1730747347667,0.4241,2433.7,2433.3,0.41117]
[1730747347668,0.41117,2433.4,2433.3,0.41117]
[1730747347861,3.92091099,2433.6,2433.1,0.8931]
[1730747348070,0.41118,2433.4,2433.3,0.41117]
[1730747348661,40.8,2433.4,2433.3,0.41117]
[1730747348859,0.41116,2433.5,2433.1,1.92115]
[1730747349053,0.4241,2433.7,2433.1,0.8931]
[1730747349251,0.41118,2433.4,2433.3,0.41117]
[1730747350154,0.4241,2433.7,2433.1,0.8931]
[1730747350485,0.41111,2433.8,2433.4,3.92098099]
[1730747350765,0.41109,2433.9,2433.8,0.41109]
[1730747351864,0.41111,2433.8,2433.7,0.41111]
[1730747352560,0.41109,2433.9,2433.8,0.41109]
[1730747353460,1.02754,2434.4,2433.8,0.41109]
[1730747353461,3.3038,2434.5,2434.2,0.41102]
[1730747353651,3.3038,2434.5,2433.9,1.02772]
[1730747353652,0.41101,2434.4,2434.3,0.411]
[1730747354172,3.6188,2434.5,2434.4,0.411]
[1730747354352,3.2078,2434.5,2434.4,0.411]
[1730747354674,0.411,2434.4,2434.1,3.6291]
[1730747354886,0.41103,2434.2,2434.1,0.83234]
[1730747355393,4.23528,2434.5,2434.1,0.4213]
[1730747355394,3.2078,2434.5,2434.1,0.4213]
[1730747355584,0.41102,2434.3,2434.2,0.41103]
[1730747356376,0.41103,2434.2,2434.1,0.83234]
[1730747356582,3.2078,2434.5,2434.1,0.4213]
[1730747356791,0.41103,2434.3,2434.2,0.41102]
[1730747357881,0.41103,2434.3,2433.9,0.41107]
[1730747357882,0.41108,2434.0,2433.9,0.41107]
[1730747358085,0.41107,2434.1,2434.0,0.41106]
[1730747359089,0.41103,2434.3,2434.1,0.41105]
[1730747359273,0.41102,2434.3,2434.2,0.85693]
[1730747361283,0.41102,2434.3,2434.2,0.4459]
[1730747361777,0.41103,2434.2,2434.1,0.41104]
[1730747362367,0.41107,2434.1,2434.0,0.41106]
[1730747362965,1.02756,2434.3,2433.9,0.4615]
[1730747363171,0.41107,2434.0,2433.9,0.4615]
[1730747363562,0.83347,2434.0,2433.9,0.4615]
[1730747364066,0.41108,2433.9,2433.8,3.2078]
[1730747364377,0.4111,2433.8,2433.7,0.4443]
[1730747364572,0.41112,2433.7,2433.6,0.85743]
[1730747365870,0.41111,2433.8,2433.7,0.4111]
[1730747373073,0.41107,2434.0,2433.9,0.41107]
[1730747374971,6.25063183,2434.0,2433.3,0.096]
[1730747375179,2.89306099,2433.4,2433.0,0.096]
[1730747375477,41.21119,2433.3,2433.2,0.41119]
[1730747376173,40.8,2433.3,2433.2,0.41119]
[1730747378273,0.096,2433.9,2433.2,13.6777727]
[1730747378473,0.096,2434.2,2434.1,0.41105]
[1730747378776,1.29597,2434.7,2434.5,0.41098]
[1730747378982,0.41097,2434.6,2434.1,7.12848099]
[1730747379182,0.41098,2434.5,2434.3,0.411]
[1730747379379,1.29596,2434.7,2434.5,0.41098]
[1730747379585,0.41097,2434.6,2434.5,0.41098]
[1730747379883,1.29596,2434.7,2434.5,0.41098]
[1730747380074,1.29596,2434.7,2434.1,6.10086099]
[1730747380075,0.4629,2434.7,2434.1,6.10086099]
[1730747380277,41.21094,2434.8,2434.6,0.41097]
[1730747380476,0.41096,2434.7,2434.6,0.41097]
[1730747380783,40.8,2434.8,2434.7,0.41095]
[1730747381786,41.21093,2434.8,2434.7,0.41095]
[1730747382080,40.8,2434.8,2434.7,0.41095]
[1730747383486,40.8,2434.8,2434.7,0.38154]
[1730747384383,0.41092,2434.9,2434.4,3.2078]
[1730747384585,0.41092,2434.9,2434.8,0.41093]
[1730747385085,41.21092,2434.9,2434.8,0.41093]
[1730747385679,3.00173183,2435.2,2434.5,1.02746]
[1730747385886,0.4109,2435.0,2434.9,0.41091]
[1730747386088,2.57963183,2435.2,2435.0,0.4109]
[1730747386089,0.41089,2435.1,2435.0,0.4109]
[1730747386287,41.21089,2435.1,2435.0,0.4109]
[1730747386790,0.4109,2435.0,2434.9,0.41091]
[1730747386991,0.41089,2435.1,2435.0,0.4109]
[1730747387386,0.41091,2435.0,2434.9,0.41091]
[1730747389389,40.8,2435.2,2435.1,0.41088]
[1730747390683,40.8,2435.2,2435.0,3.2078]
[1730747390684,2.14749521,2435.4,2435.3,0.41085]
[1730747391087,42.94749521,2435.4,2435.3,0.41085]
[1730747391290,43.35832521,2435.4,2435.3,0.41085]
[1730747392281,43.35832521,2435.4,2435.0,1.02723]
[1730747392484,43.35832521,2435.4,2434.8,4.38429099]
[1730747392485,0.41085,2435.3,2435.2,0.41085]
[1730747392693,43.35833521,2435.4,2435.3,0.41085]
[1730747392996,41.21084,2435.4,2435.3,0.41085]
[1730747393290,40.8,2435.4,2434.9,1.0273]
[1730747393592,0.41086,2435.3,2435.2,0.41085]
[1730747394395,41.21085,2435.4,2435.3,0.41085]
[1730747395099,41.21083,2435.4,2435.3,0.41085]
[1730747397582,0.41085,2435.3,2435.2,0.84645]
[1730747398093,41.21085,2435.4,2435.3,0.41085]
[1730747399498,0.41084,2435.4,2435.3,0.41085]
[1730747400722,0.41084,2435.4,2434.6,6.21186099]
[1730747400723,4.1064,2435.4,2434.6,6.21186099]
[1730747400917,0.41087,2435.2,2435.1,0.41086]
[1730747401118,1.02709,2435.4,2434.9,0.4599]
[1730747401418,0.41088,2435.2,2435.1,0.41086]
[1730747403220,0.451,2435.3,2434.9,0.4599]
[1730747403415,1.2668,2435.1,2435.0,0.41088]
[1730747403608,0.8559,2435.1,2434.8,0.4624]
[1730747403823,0.8559,2435.1,2434.7,0.41093]
[1730747403824,0.41095,2434.8,2434.7,0.41093]
[1730747405900,0.41095,2434.7,2434.6,3.61876]
[1730747406703,0.86233,2434.8,2434.7,0.41095]
[1730747407312,0.41092,2435.0,2434.9,0.4109]
[1730747407806,0.41092,2435.0,2434.8,0.41092]
[1730747407807,4.1072,2435.0,2434.8,0.41092]
[1730747408037,0.41086,2435.3,2435.2,0.41085]
[1730747408232,4.50354,2435.4,2435.3,0.41085]
[1730747409799,3.6413,2435.4,2435.3,0.41085]
[1730747410003,0.4335,2435.4,2435.3,0.41085]
[1730747410413,41.63642,2435.5,2435.4,0.41083]
[1730747410816,40.8,2435.5,2435.4,0.41083]
[1730747411014,0.86729,2435.7,2435.6,0.4108]
[1730747411409,41.66729,2435.7,2435.6,0.4108]
[1730747412009,41.66729,2435.7,2435.5,0.41081]
[1730747412010,0.41081,2435.6,2435.5,0.41081]
[1730747412216,41.6673,2435.7,2435.6,0.4108]
[1730747412515,41.2565,2435.7,2435.6,0.4108]
[1730747412715,40.8,2435.7,2435.6,0.4108]
[1730747413014,0.4632,2435.9,2435.6,0.4108]
[1730747413216,0.4632,2435.9,2435.8,0.41076]
[1730747413412,3.6489,2436.0,2435.9,0.41075]
[1730747413413,0.4411,2436.0,2435.9,0.41075]
[1730747413621,40.8,2436.0,2435.9,0.41075]
[1730747414517,40.8,2436.0,2435.9,0.83655]
[1730747415018,40.8,2436.0,2435.5,3.34296099]
[1730747415214,0.4108,2435.7,2435.6,0.41079]
[1730747415617,0.41081,2435.6,2435.5,0.4108]
[1730747415928,0.4251,2435.8,2435.3,0.8769]
[1730747416237,0.41081,2435.6,2435.5,0.4108]
[1730747416436,0.4251,2435.8,2435.3,0.8769]
[1730747416437,1.45202,2435.8,2435.3,0.8769]
[1730747416639,0.41083,2435.5,2435.4,0.41082]
[1730747417043,1.45202,2435.8,2435.3,0.8769]
[1730747417245,0.41081,2435.6,2435.5,0.4108]
[1730747418322,1.45202,2435.8,2435.3,0.4485]
[1730747418534,0.41083,2435.4,2435.3,0.85933]
[1730747418836,1.45202,2435.8,2435.3,0.85933]
[1730747418837,1.45202,2435.8,2435.3,0.4485]
[1730747419059,0.41081,2435.6,2435.5,0.4108]
[1730747419936,0.41082,2435.6,2435.5,0.41081]
[1730747420844,0.41083,2435.4,2435.3,0.41084]
[1730747421635,0.83642,2435.5,2435.4,0.41083]
[1730747422147,0.41085,2435.4,2435.3,0.41084]
[1730747423423,0.41083,2435.4,2435.3,0.41084]
[1730747424315,0.41083,2435.4,2435.1,5.0957]
[1730747424316,0.41086,2435.2,2435.1,1.92560676]
[1730747424521,0.41086,2435.2,2435.1,0.85157]
[1730747426025,0.41088,2435.1,2435.0,0.86699]
[1730747427527,0.4109,2435.0,2434.9,1.48494676]
[1730747427724,1.02718,2435.2,2434.7,1.07403676]
[1730747427725,3.92028099,2435.1,2434.7,1.07403676]
[1730747428028,3.92028099,2435.1,2434.8,0.41093]
[1730747428029,4.07773,2434.9,2434.8,0.41093]
[1730747428323,41.66993,2434.9,2434.8,0.41093]
[1730747428523,44.4668,2434.9,2434.5,0.4452]
[1730747428723,0.41095,2434.8,2434.7,0.41093]
[1730747429240,41.259,2434.9,2434.5,0.4452]
[1730747429433,0.41096,2434.7,2434.6,0.41095]
[1730747435635,0.41095,2434.8,2434.7,0.41093]
[1730747435827,0.41095,2434.8,2434.5,1.47265]
[1730747435828,0.41097,2434.7,2434.6,0.41095]
[1730747436134,0.411,2434.5,2434.4,0.41098]
[1730747436326,0.411,2434.5,2434.4,0.411]
[1730747436526,41.211,2434.5,2434.4,0.411]
[1730747436931,41.211,2434.5,2434.3,4.0673]
[1730747436932,0.411,2434.4,2434.3,4.47831]
[1730747437128,40.8,2434.5,2434.2,0.41103]